Cogmind - Beta 14 @@@ ROGUE MODE // 2024.12.28 @ 23:27:47 Player: k1ll3rb0t Result: Self-destructed Performance ------------- Evolutions (1) 500 Regions Visited (2) 400 Robots Destroyed (11) 55 Value Destroyed (317) 317 Prototype IDs (0) 0 Alien Tech Used (0) 0 Bonus (0) 0 TOTAL SCORE: 1272 Bonus ------- None Cogmind --------- Core Integrity 229/400 Matter 300/300 Energy 100/100 System Corruption 0% Temperature Cool (0) Movement Core (50) Location -9/Materials Parts ------- > --- POWER (1) -------- (None) > --- PROPULSION (2) --- (None) > --- UTILITY (4) ------ Core Shielding > --- WEAPON (2) ------- (None) > --- INVENTORY (5) ---- Ion Engine Light Ion Engine Peak State ------------ > --- POWER ------------ Improved Ion Engine > --- PROPULSION ------- Aluminum Leg Improved Aluminum Leg > --- UTILITY ---------- Heat Sink Terrain Scanner ECM Suite Core Shielding > --- WEAPON ----------- EM Pulse Gun Heavy EM Pulse Gun > --- INVENTORY -------- Light Ion Engine Aluminum Leg Light Assault Rifle [Rating: 12] Favorites ----------- Power Improved Ion Engine Engine Improved Ion Engine Propulsion Aluminum Leg Leg Aluminum Leg Utility ECM Suite Device ECM Suite Protection Core Shielding Weapon EM Pulse Gun Energy Gun EM Pulse Gun Ballistic Gun Light Assault Rifle Build | -11 -10 -9 ------- Run | Yrd Mat Mat Slots Evolved 2 | . . 2 Power . | . . . Propulsion . | . . . Utility 2 | . . 2 Weapon . | . . . Parts Attached 19 | 7 4 8 Power 3 | 2 . 1 Engine 3 | 2 . 1 Core . | . . . Reactor . | . . . Propulsion 5 | 2 . 3 Treads . | . . . Leg 5 | 2 . 3 Wheel . | . . . Hover . | . . . Flight . | . . . Utility 5 | . 3 2 Device 4 | . 3 1 Storage . | . . . Processor . | . . . Hackware . | . . . Protection 1 | . . 1 Artifact . | . . . Weapon 6 | 3 1 2 Energy Gun 4 | 2 1 1 Energy Cannon . | . . . Ballistic Gun 2 | 1 . 1 Ballistic Cannon . | . . . Launcher . | . . . Special Weapon . | . . . Impact Weapon . | . . . Slashing Weapon . | . . . Piercing Weapon . | . . . Special Melee Weapon . | . . . Unidentified Prototypes . | . . . Parts Lost 9 | . . 9 Power 1 | . . 1 Propulsion 2 | . . 2 Utility 3 | . . 3 Weapon 3 | . . 3 Highest Loss Streak 7 | . . 7 To Critical Strikes . | . . . Average Slot Usage (%) 88 | . 80 91 Engine 11 | . 14 10 Leg 23 | . 28 21 Device 25 | . 9 32 Protection 4 | . . 6 Energy Gun 21 | . 25 19 Ballistic Gun 1 | . 2 . Peak Build Rating 12 | 5 7 12 Average Rating 8 | 1 5 10 On Entrance 4 | . 5 7 Naked Turns . | . . . Heaviest Build 17 | 5 9 17 Greatest Support 23 | 20 20 23 Greatest Overweight (x) 1 | . . 1 Average Overweight (x) . | . . . Largest Inventory Capacity 5 | 5 5 5 Average Capacity 5 | 5 5 5 Most Carried 5 | 5 5 5 Average Carried 3 | 2 4 3 Final Capacity 5 | 5 5 5 Final Carried 5 | 3 5 2 Class Distribution -------------------- 100% | Mutant Dominant Class ---------------- Mutant | -10/Materials Mutant | -9/Materials Resources | -11 -10 -9 ----------- Run | Yrd Mat Mat Matter Collected 382 | 272 10 100 Remotely . | . . . Salvage Created 428 | 40 124 264 Parts 24 | 2 6 16 Haulers Intercepted 1 | . 1 . Recyclers Shooed . | . . . Parts Field Recycled . | . . . Retrieved Matter . | . . . Parts Self-Destructed . | . . . Prevented . | . . . Kills | -11 -10 -9 ------- Run | Yrd Mat Mat Combat Hostiles Destroyed 10 | 1 2 7 Guns 8 | 1 . 7 AOE 2 | . 2 . Classes Destroyed 4 | 1 1 2 Hauler 1 | . 1 . Swarmer 2 | . . 2 Grunt 7 | 1 2 4 Duelist 1 | . . 1 Best Kill Streak 5 | 1 2 5 Combat Bots Only 5 | 1 2 5 Max Kills in Single Turn 2 | 1 2 1 Gunslinging . | . . . Exploded 2 | . 2 . Melee . | . . . Uniques/NPCs Destroyed . | . . . Combat | -11 -10 -9 -------- Run | Yrd Mat Mat Hostile Shots Fired 100 | 2 3 95 Missed 33 | . 1 32 Damage Taken 824 | 22 93 709 Core 182 | 11 . 171 Absorbed by Shields . | . . . Redirected to Shielding 14 | . . 14 Core Remaining (%) 95 | 95 95 . Volleys Fired 35 | 2 7 26 Largest 2 | 2 2 2 Hottest 85 | 60 80 85 Shots Fired 57 | 4 14 39 Gun 57 | 4 14 39 Cannon . | . . . Launcher . | . . . Special . | . . . Kinetic 15 | 2 . 13 Thermal 10 | 2 7 1 Explosive . | . . . Electromagnetic 32 | . 7 25 Robot Hit Streak 8 | 4 4 8 Robot Miss Streak 5 | . 5 4 Penetration Max . | . . . Secondary Targets 1 | . . 1 Max Gunslinging Chain 1 | . . 1 Shots Hit Robots 32 | 4 6 22 Core Hits 16 | 2 3 11 Critical Kills . | . . . Critical Parts Destroyed . | . . . Critical Strikes . | . . . Melee Attacks . | . . . Impact . | . . . Slashing . | . . . Piercing . | . . . Sneak Attacks . | . . . Combat Hostiles . | . . . Follow-up Attacks . | . . . Damage Inflicted 485 | 39 165 281 Guns 386 | 39 66 281 Cannons . | . . . Explosions 99 | . 99 . Melee . | . . . Ramming . | . . . Kinetic 72 | 17 . 55 Thermal 153 | 22 120 11 Explosive . | . . . Electromagnetic 260 | . 45 215 Impact . | . . . Slashing . | . . . Piercing . | . . . Highest Corruption . | . . . Average Corruption . | . . . Corruption Purged . | . . . Corruption Blocked . | . . . Overload Shots . | . . . Overflow Damage . | . . . Projectiles . | . . . Explosions . | . . . Melee . | . . . Knockbacks . | . . . Impact . | . . . Kinetic . | . . . Secondary . | . . . Self-Inflicted Damage 71 | . 71 . Shots 2 | . 2 . Rammed . | . . . Targets Rammed . | . . . Kicked . | . . . Crushed . | . . . Highest Temperature 66 | 16 66 4 Average Temperature 18 | 10 25 2 Received Heat Transfer 189 | 12 12 165 Siege Activations . | . . . Robots Corrupted . | . . . Combat Hostiles . | . . . Parts Fried . | . . . Impact Corruptions . | . . . Robots Melted . | . . . Combat Hostiles . | . . . Parts Melted 1 | . 1 . Heat Transferred 275 | 50 200 25 Parts Sabotaged . | . . . Parts Stolen . | . . . Parts Stripped . | . . . Power Chain Reactions 2 | . 2 . Alert | -11 -10 -9 ------- Run | Yrd Mat Mat Peak Influence 181 | 20 110 181 Initial 46 | . 13 46 Average 93 | 7 70 116 Maximum Alert Level . | . . . Low Security (%) 100 | 100 100 100 Level 1 . | . . . Level 2 . | . . . Level 3 . | . . . Level 4 . | . . . Level 5 . | . . . High Security . | . . . Max Security . | . . . Squads Dispatched 2 | . . 2 Investigation . | . . . Extermination . | . . . Reinforcement 2 | . . 2 Assault . | . . . Garrison . | . . . Intercept . | . . . Searches Triggered . | . . . Construction Impeded . | . . . Haulers Reinforced . | . . . Active Scanning Responses . | . . . Cargo Convoy Interrupts . | . . . Stealth | -11 -10 -9 --------- Run | Yrd Mat Mat Distress Signals 4 | . 1 3 Communications Jammed . | . . . Distress Signals . | . . . Times Spotted 29 | 1 4 24 Peak Tracking Total 16 | 1 3 16 Tactical Retreats 3 | . . 3 Traps | -11 -10 -9 ------- Run | Yrd Mat Mat Traps Triggered . | . . . Indirectly . | . . . Trap Hack Attempts . | . . . Triggered . | . . . Disarmed . | . . . Reprogrammed . | . . . Reused . | . . . Traps Extracted . | . . . Installed . | . . . Triggered . | . . . Machines | -11 -10 -9 ---------- Run | Yrd Mat Mat Machines Disabled 1 | . 1 . Max in Single Turn 1 | . 1 . Machines Repaired . | . . . Machines Dismantled . | . . . Machines Sabotaged . | . . . Overloaded Fab Kills . | . . . Hacking | -11 -10 -9 --------- Run | Yrd Mat Mat Machines Accessed . | . . . Terminals . | . . . Fabricators . | . . . Repair Stations . | . . . Recycling Units . | . . . Scanalyzers . | . . . Garrison Access . | . . . Total Hacks . | . . . Successful . | . . . Failed . | . . . Catastrophic . | . . . Database Lockouts . | . . . Manual . | . . . Terminals . | . . . Fabricators . | . . . Repair Stations . | . . . Recycling Units . | . . . Scanalyzers . | . . . Garrison Access . | . . . Terminal Hacks . | . . . Fabricator Hacks . | . . . Repair Station Hacks . | . . . Recycling Unit Hacks . | . . . Scanalyzer . | . . . Garrison Access Hacks . | . . . Unauthorized Hacks . | . . . Terminals . | . . . Fabricators . | . . . Repair Stations . | . . . Recycling Units . | . . . Scanalyzers . | . . . Garrison Access . | . . . Data Cores Recovered . | . . . Used . | . . . Hacking Detections . | . . . Full Trace Events . | . . . Feedback Events . | . . . Feedback Blocked . | . . . Robot Schematics Acquired . | . . . Robots Built . | . . . Authchips . | . . . Time . | . . . Total Robot Build Rating . | . . . Part Schematics Acquired . | . . . Parts Built . | . . . Authchips . | . . . Time . | . . . Total Part Build Rating . | . . . Parts Repaired . | . . . Time . | . . . Parts Recycled . | . . . Recycled Matter . | . . . Retrieved Matter . | . . . Retrieved Components . | . . . Parts Scanalyzed . | . . . Part Schematics Acquired . | . . . Parts Damaged . | . . . Bothacking | -11 -10 -9 ------------ Run | Yrd Mat Mat Used RIF Installer . | . . . Robots Hacked . | . . . Non-combat . | . . . Combat . | . . . Robot Hacks Applied . | . . . Relay Couplers Released . | . . . Fabnet Peak Effective % . | . . . Robots Rewired . | . . . Allies Hacked . | . . . Hacks Repelled . | . . . Allies | -11 -10 -9 -------- Run | Yrd Mat Mat Total Allies . | . . . Largest Group . | . . . Highest-Rated Group . | . . . Highest-Rated Ally . | . . . Total Orders . | . . . Ally Attacks . | . . . Total Damage . | . . . Kills . | . . . Allies Corrupted . | . . . Allies Melted . | . . . Intel | -11 -10 -9 ------- Run | Yrd Mat Mat Robot Analysis Total . | . . . Derelict Logs Recovered . | . . . Drone Launches . | . . . Drone Recoveries . | . . . Exploration | -11 -10 -9 ------------- Run | Yrd Mat Mat Turns Passed 731 | 71 199 461 Spaces Moved 537 | 84 138 315 Core 71 | 71 . . Treads . | . . . Legs 466 | 13 138 315 Wheels . | . . . Hover . | . . . Flight . | . . . Fastest Speed 50 | 50 120 120 Average Speed 111 | 60 120 120 Slowest Speed 190 | 120 120 190 Overloaded Moves . | . . . Propulsion Burnouts . | . . . Robots Hopped . | . . . Cave-ins Triggered . | . . . Exploration Rate (%) 19 | 8 32 17 Regions Visited 2 Branch Regions . Pre-discovered Areas . | . . . Known Exits Taken . | . . . Unknown Exits Taken 2 | 1 1 . Scrap Searched . | . . . Spaces Dug . | . . . Terrain Destroyed 4 | . 4 . Melee . | . . . Projectile . | . . . AOE 4 | . 4 . Terrain Rammed . | . . . Walls Destroyed . | . . . Machines Disabled . | . . . Actions | -11 -10 -9 --------- Run | Yrd Mat Mat Total 617 | 101 156 360 Wait 5 | . 4 1 Move 535 | 83 137 315 Hop . | . . . Pick Up 16 | 7 4 5 Fast Attach 1 | 1 . . Attach 14 | 6 2 6 Detach 2 | 2 . . Swap 4 | . 2 2 Drop 5 | . . 5 Fire 35 | 2 7 26 Melee . | . . . Ram . | . . . Kick . | . . . Crush . | . . . Escape Stasis . | . . . Rewire . | . . . Trap . | . . . Miscellaneous . | . . . Route ------- -11/Scrapyard -10/Materials -9/Materials History --------- Turn | Location | Event 2 | -11/Scrapyard | Met Revision 17 40 | -11/Scrapyard | Discovered new exit (range 8) 72 | -11/Scrapyard | Entered Materials 229 | -10/Materials | Discovered new exit (range 13) 271 | -10/Materials | Entered another Materials area 271 | -9/Materials | Evolved 2 slots: Utility x2 310 | -9/Materials | Build established: Mutant 732 | -9/Materials | Self-destructed Last Messages --------------- 00453_ Acquired 30 matter. 00455_ Acquired Ion Engine. 00456_ Dropped Aluminum Leg. 00459_ Acquired 10 matter. 00479_ W-16 Scout sends out distress signal. 00485_ ALERT: Hostiles spotted, dispatching reinforcements to Terminal M001. 00630_ K-01 Serf collects debris. 00676_ EM Pulse Gun destroyed. 00679_ Hvy. EM Pulse Gun destroyed. 00699_ K-01 Serf collects debris. 00710_ Imp. Ion Engine destroyed. 00721_ Aluminum Leg destroyed. 00723_ S-10 Pest destroyed. 00724_ Heat Sink destroyed. 00725_ S-10 Pest destroyed. 00726_ Imp. Aluminum Leg destroyed. 00727_ Terrain Scanner destroyed. 00728_ ECM Suite destroyed. 00732_ Lgt. Assault Rifle destroyed. Map ----- +----------------------------------------------------+ | ?????????????????????????????????????????????????? | | ???????????????????????? ?? ????????????????????? | | ??????????????????????# ? ????????????????????? | | ??????????????????????# ????????????????????? | | ??????????????????????# ????????????????????? | | ??????????????????????+ T ????????????????????? | | ??????????????????????? ????????????????????? | | ??????????????????????? ????????????????????? | | ???????????????????????? ????????????????????? | | ????????????????????????# #??????????????#?#???? | | ?????????????????#??????# #??????????????????#?? | | ??????????????????#?????# #???????????????????? | | ????????????????????????# #????#????????????#? | | ???????????????????????## ##?#######???????#?# | | ????????????????????#??# #?# ########## | | ???????????????????????# ### | | ???????????????????#???# | | ??????????????#????????# ### | | ???????????????????????# #?# ###### ### | | ??????????????#??????#####r###?## #????# #??#?+ | | ????????????????#????# s #???# ???# #? ??? | | ?????????????????????# gggY #???#! !#??# #?? ?? | | ?????????????????????#Ys"""g#?#?##!!!!##??# #????? | | ?????????????????????# """g#????#######??# #??? | | ?????????????????????#s="""s#?????????????# #????? | | ?????????????????????# =l@s=#?????????????# #????? | | ?????????????????#???########????????#????# #????? | | ??????????????????????????????##????#?????# ##???? | | ??????????????????????????????##????#?????# #????? | | ??????????????????????????????????????????# ##???# | | ???????????????????????????????#????????#?# ##?#?? | | ??????????????????????????????????????????# #????? | | ???????????????????????????????????##??#?## #????# | | ????????????????? ?????????????#?#????????# ###### | | ?????????????????????????????????##???##?## ## | | ????????????????????????????#????????#????# ## | | ??????????????????????????????##????#???### ##%= | | ????????????????????????????##?????????#?# #== | | ???????????????????????????????########### %+== | | ???????????????????????????????# #?# #=% | | ???????????????????????????#???# ##### ### # | | ??????????????????????????#????# #?### ### # | | ???????????????????????????????# ### # # | | ?????????????????????#?????##??# #?# # ##### | | ????????????????????????#??????# #?# T # ##?#? | | ?????????????????????##????????# #?# # #???# | | ?????????????????????????????#?# #?# # #???? | | ????????????????????????"???####+#### #??## | | ????????????????????#????"??# # ##??? | | ????????????????????????????# # #???? | +----------------------------------------------------+ Best States ------------- Heat Dissipation 38 Energy Generation 12 Energy Capacity 265 Matter Stores 300 Matter Capacity 300 Sight Range 16 Terrain Scan Range 14 Terrain Scan Density 10 ECM Strength 1 Core Shielding 20 Evasion (%) 55 Item Schematics ----------------- None Robot Schematics ------------------ None Fabricated ------------ Nothing Alien Tech Used ----------------- None Achievements -------------- None Challenges ------------ None Game ------ Seed ScanFissionInterpreter Manual? 0 Play Time 00:12:13 Cumulative 4.5 hours Start 2024.12.28 @ 23:15:41 End 2024.12.28 @ 23:27:47 Sessions 1 Manual Loads 0 Difficulty Rogue Special Mode None Game No. 3 Rogue 3 Adventurer 0 Explorer 0 Win Type - Total 0 Types 0/0/0/0/0/0/0/0/0 Lore% 2 Gallery% 6 Achievement% 6 Wizard Run 0 Options --------- Layout 1 ASCII 0 Keyboard 0 Movement Mouse Keybinds 0 Fullscreen 1 Font 24/Smallcaps Map View 50x35 Zoom Use 0% Tactical HUD 1 Map Filters NONE Filters NONE Steam 1 RUN: 5fbb3336-0a07-4d45-b17d-b9bd3d7f4816